[Event "EYCC O18-ch 2024"]
[Site "Prague"]
[Date "2024.08.31"]
[Round "9.8"]
[White "Rozen, Eytan"]
[Black "Xhembulla, Aleksander"]
[Result "1-0"]
[ECO "A14"]
[WhiteElo "2478"]
[BlackElo "2201"]
[Annotator "RC"]
[PlyCount "91"]
[EventDate "2024.08.19"]
[EventType "swiss"]
[EventCountry "CZE"]
[SourceTitle "playchess.com"]
[Source "ChessBase"]
[SourceQuality "1"]
[TimeControl "5400+30"]

1. c4 {[%emt 0:00:08]} e6 {[%emt 0:00:05]} 2. Nf3 {[%emt 0:00:07]} Nf6 {[%emt 0:00:06]} 3. g3 {[%emt 0:00:49]} d5 {[%emt 0:00:08]} 4. Bg2 {[%emt 0:00:02]} Be7 {[%emt 0:00:08]} 5. O-O {[%emt 0:00:25]} O-O {[%emt 0:00:11]} 6. d3 {[%emt 0:00:04]} c5 {[%emt 0:00:13]} 7. cxd5 {[%emt 0:03:08]} exd5 {[%emt 0:00:18]} 8. d4 {[%emt 0:00:07]} h6 {[%emt 0:00:59]} 9. Nc3 {[%emt 0:02:44]} Nc6 {[%emt 0:01:44]} 10. dxc5 {[%emt 0:00:51]} Bxc5 {[%emt 0:00:09]} 11. b3 {[%emt 0:00:02]} Re8 {[%emt 0:09:33]} 12. Bb2 {[%emt 0:01:01]} a6 {[%emt 0:09:44]} 13. e3 {[%emt 0:00:44]} Ba7 {[%emt 0:00:37]} 14. Ne2 {[%emt 0:00:24]} Bf5 {[%emt 0:07:28]} 15. Nfd4 {[%emt 0:04:21]} Be4 {[%emt 0:07:18]} 16. Nxc6 {[%emt 0:00:18]} bxc6 {[%emt 0:00:04]} 17. Rc1 {[%emt 0:00:12]} Rc8 {[%emt 0:01:20]} 18. Bxe4 {[%emt 0:05:08]} Nxe4 {[%emt 0:01:58]} 19. Qd3 {[%emt 0:01:00]} Qa5 {[%emt 0:10:25]} 20. Nd4 {[%emt 0:02:39]} c5 {[%emt 0:06:19]} 21. Nf5 {[%emt 0:01:10]} c4 {[%emt 0:02:00]} 22. bxc4 {[%emt 0:01:57]} dxc4 {[%emt 0:00:45]} 23. Qd7 {[%emt 0:00:04]} Qc7 {[%emt 0:22:50]} 24. Qxc7 {[%emt 0:01:42]} Rxc7 {[%emt 0:00:03]} 25. Nxg7 {[%emt 0:01:59]} Rd8 {[%emt 0:00:37]} 26. Be5 {[%emt 0:01:50]} Re7 {[%emt 0:01:04]} 27. Bd4 {[%emt 0:01:49]} Bxd4 {[%emt 0:02:08]} 28. Nf5 {[%emt 0:00:20]} Bf6 {[%emt 0:00:08]} 29. Nxe7+ {[%emt 0:00:28]} Bxe7 {[%emt 0:00:04]} 30. Rxc4 {[%emt 0:00:05]} Nd2 {[%emt 0:00:09]} 31. Rg4+ {[%emt 0:00:07]} Kf8 {[%emt 0:00:51]} 32. Rc1 {[%emt 0:00:21]} Nf3+ {[%emt 0:00:26]} 33. Kg2 {[%emt 0:00:18]} Ne5 {[%emt 0:00:08]} 34. Rd4 {[%emt 0:00:54]} Rxd4 {[%emt 0:01:40]} 35. exd4 {[%emt 0:02:01]} Nd3 {[%emt 0:00:04]} 36. Rc6 {[%emt 0:00:36]} a5 {[%emt 0:01:29]} 37. Rxh6 {[%emt 0:02:07]} a4 {[%emt 0:00:04]} 38. Rc6 {[%emt 0:01:56]} a3 39. Rc3 {[%emt 0:00:50]} Nb2 {[%emt 0:00:46]} 40. h4 {[%emt 0:00:35]} Bb4 {[%emt 0:03:11]} 41. Rc8+ {[%emt 0:03:51]} Kg7 {[%emt 0:00:11]} 42. d5 {[%emt 0:02:10]} Nd3 {[%emt 0:00:27]} 43. f4 {[%emt 0:00:57]} Nc5 {[%emt 0:02:32]} 44. Rc6 {[%emt 0:01:24]} Nd7 {[%emt 0:00:25]} 45. h5 {[%emt 0:00:14]} Nf8 {[%emt 0:01:32]} 46. g4 {[%emt 0:00:23]} 1-0

[Event "EYCC O18-ch 2024"]
[Site "Prague"]
[Date "2024.08.31"]
[Round "9.9"]
[White "Levin, Guy"]
[Black "Elmi, Saad Abobaker"]
[Result "1-0"]
[ECO "A14"]
[WhiteElo "2436"]
[BlackElo "2383"]
[Annotator "RC"]
[PlyCount "51"]
[EventDate "2024.08.19"]
[EventType "swiss"]
[EventCountry "CZE"]
[SourceTitle "playchess.com"]
[Source "ChessBase"]
[SourceQuality "1"]
[TimeControl "5400+30"]

1. c4 {[%emt 0:00:03]} Nf6 {[%emt 0:00:33]} 2. g3 {[%emt 0:00:07]} e6 {[%emt 0:00:19]} 3. Bg2 {[%emt 0:00:05]} d5 {[%emt 0:00:08]} 4. Nf3 {[%emt 0:00:04]} Be7 {[%emt 0:00:31]} 5. O-O {[%emt 0:00:08]} O-O {[%emt 0:00:09]} 6. d3 {[%emt 0:00:05]} b6 {[%emt 0:02:58]} 7. cxd5 {[%emt 0:00:42]} Nxd5 {[%emt 0:01:02]} 8. d4 {[%emt 0:10:47]} Ba6 {[%emt 0:12:04]} 9. Nc3 {[%emt 0:07:19]} Nxc3 {[%emt 0:08:57]} 10. bxc3 {[%emt 0:00:05]} Nd7 {[%emt 0:10:39]} 11. Re1 {[%emt 0:15:58]} Bb7 {[%emt 0:02:57]} 12. Qd3 {[%emt 0:06:41]} c5 {[%emt 0:02:40]} 13. Ng5 {[%emt 0:02:18]} Bxg5 {[%emt 0:00:09]} 14. Bxb7 {[%emt 0:01:22]} Rb8 {[%emt 0:00:08]} 15. Bxg5 {[%emt 0:01:14]} Qxg5 {[%emt 0:00:08]} 16. Qa6 {[%emt 0:01:14]} Qd2 {[%emt 0:01:18]} 17. Bc6 {[%emt 0:06:24]} Nf6 {[%emt 0:00:37]} 18. dxc5 {[%emt 0:01:24]} bxc5 {[%emt 0:15:03]} 19. Qxa7 {[%emt 0:01:29]} Qxc3 {[%emt 0:00:20]} 20. a4 {[%emt 0:04:52]} c4 {[%emt 0:10:02]} 21. a5 {[%emt 0:03:35]} Nd5 {[%emt 0:00:48]} 22. a6 {[%emt 0:06:02]} Nb4 {[%emt 0:02:02]} 23. Be4 {[%emt 0:10:04]} Qe5 {[%emt 0:01:10]} 24. Qxb8 {[%emt 0:04:22]} Rxb8 {[%emt 0:03:43]} 25. a7 {[%emt 0:00:04]} Nd5 {[%emt 0:00:32]} 26. Bxd5 {[%emt 0:01:17]} 1-0

[Event "EYCC O18-ch 2024"]
[Site "Prague"]
[Date "2024.08.31"]
[Round "9.10"]
[White "Fishchuk, Vladyslav"]
[Black "Borrmann, Laurenz"]
[Result "1/2-1/2"]
[ECO "E10"]
[WhiteElo "2264"]
[BlackElo "2427"]
[Annotator "RC"]
[PlyCount "46"]
[EventDate "2024.08.19"]
[EventType "swiss"]
[EventCountry "CZE"]
[SourceTitle "playchess.com"]
[Source "ChessBase"]
[SourceQuality "1"]
[TimeControl "5400+30"]

1. d4 {[%emt 0:00:07]} Nf6 {[%emt 0:00:08]} 2. c4 {[%emt 0:00:04]} e6 {[%emt 0:00:04]} 3. Nf3 {[%emt 0:00:03]} c5 {[%emt 0:00:59]} 4. d5 {[%emt 0:00:07]} b5 {[%emt 0:00:07]} 5. dxe6 {[%emt 0:00:14]} fxe6 {[%emt 0:00:09]} 6. cxb5 {[%emt 0:00:03]} d5 {[%emt 0:00:17]} 7. e3 {[%emt 0:00:13]} Bd6 {[%emt 0:00:22]} 8. Nc3 {[%emt 0:01:15]} O-O {[%emt 0:03:14]} 9. e4 {[%emt 0:04:58]} Bc7 {[%emt 0:25:02]} 10. Bd3 {[%emt 0:08:49]} Nbd7 {[%emt 0:09:58]} 11. Qe2 {[%emt 0:06:27]} Ne5 {[%emt 0:04:14]} 12. Nxe5 {[%emt 0:00:40]} Bxe5 {[%emt 0:00:08]} 13. f4 {[%emt 0:01:10]} Bxc3+ {[%emt 0:15:26]} 14. bxc3 {[%emt 0:00:04]} dxe4 {[%emt 0:05:34]} 15. Bc4 {[%emt 0:14:56]} Nd5 {[%emt 0:01:13]} 16. Qxe4 {[%emt 0:00:33]} Nxc3 {[%emt 0:00:48]} 17. Qd3 {[%emt 0:04:14]} Qxd3 {[%emt 0:04:56]} 18. Bxd3 {[%emt 0:00:05]} Rd8 {[%emt 0:01:31]} 19. Be2 {[%emt 0:01:11]} Bb7 {[%emt 0:00:28]} 20. Bb2 {[%emt 0:00:59]} Nxe2 {[%emt 0:08:44]} 21. Kxe2 {[%emt 0:00:07]} Be4 {[%emt 0:00:40]} 22. Rhd1 {[%emt 0:02:26]} Rd5 {[%emt 0:03:08]} 23. Rac1 {[%emt 0:17:25]} a6 {[%emt 0:00:13]} 1/2-1/2

[Event "EYCC O18-ch 2024"]
[Site "Prague"]
[Date "2024.08.31"]
[Round "9.11"]
[White "Sachilaru, Alexandru"]
[Black "Hrbek, Stepan"]
[Result "1/2-1/2"]
[ECO "C70"]
[WhiteElo "2255"]
[BlackElo "2414"]
[Annotator "RC"]
[PlyCount "120"]
[EventDate "2024.08.19"]
[EventType "swiss"]
[EventCountry "CZE"]
[SourceTitle "playchess.com"]
[Source "ChessBase"]
[SourceQuality "1"]
[TimeControl "5400+30"]

1. e4 {[%emt 0:00:05]} e5 {[%emt 0:00:10]} 2. Nf3 {[%emt 0:00:15]} Nc6 {[%emt 0:00:07]} 3. Bb5 {[%emt 0:00:11]} a6 {[%emt 0:00:10]} 4. Ba4 {[%emt 0:00:10]} Bc5 {[%emt 0:00:12]} 5. O-O {[%emt 0:00:58]} Nge7 {[%emt 0:00:10]} 6. c3 {[%emt 0:00:44]} Ng6 {[%emt 0:00:14]} 7. d4 {[%emt 0:01:03]} Ba7 {[%emt 0:00:09]} 8. Bg5 {[%emt 0:01:31]} f6 {[%emt 0:00:12]} 9. Be3 {[%emt 0:01:02]} O-O {[%emt 0:00:20]} 10. Re1 {[%emt 0:03:53]} d6 {[%emt 0:00:34]} 11. Nbd2 {[%emt 0:02:55]} Kh8 {[%emt 0:00:14]} 12. h3 {[%emt 0:02:16]} exd4 {[%emt 0:00:16]} 13. cxd4 {[%emt 0:04:15]} d5 {[%emt 0:00:35]} 14. Bxc6 {[%emt 0:04:47]} bxc6 {[%emt 0:00:14]} 15. Rc1 {[%emt 0:03:23]} dxe4 {[%emt 0:09:20]} 16. Nxe4 {[%emt 0:01:06]} Be6 {[%emt 0:00:15]} 17. Nc5 {[%emt 0:03:46]} Bxc5 {[%emt 0:04:12]} 18. Rxc5 {[%emt 0:13:55]} Bd5 {[%emt 0:01:04]} 19. Rc3 {[%emt 0:04:48]} a5 {[%emt 0:05:08]} 20. b3 {[%emt 0:06:04]} Qd6 {[%emt 0:07:44]} 21. Bc1 {[%emt 0:04:16]} Ne7 {[%emt 0:11:04]} 22. Bf4 {[%emt 0:07:15]} Qd7 {[%emt 0:02:23]} 23. Nd2 {[%emt 0:03:58]} Ng6 {[%emt 0:06:11]} 24. Bg3 {[%emt 0:02:30]} f5 {[%emt 0:01:27]} 25. Be5 {[%emt 0:01:48]} f4 {[%emt 0:08:36]} 26. Qg4 {[%emt 0:07:26]} Qxg4 {[%emt 0:10:28]} 27. hxg4 {[%emt 0:00:09]} Rfe8 {[%emt 0:00:10]} 28. Rcc1 {[%emt 0:02:46]} Nxe5 {[%emt 0:03:54]} 29. dxe5 {[%emt 0:04:54]} a4 {[%emt 0:00:27]} 30. Nf3 {[%emt 0:00:53]} axb3 {[%emt 0:07:18]} 31. axb3 {[%emt 0:00:21]} Kg8 {[%emt 0:00:16]} 32. Nd4 {[%emt 0:00:31]} Ra6 {[%emt 0:00:17]} 33. Rc3 {[%emt 0:01:47]} Rb6 {[%emt 0:01:58]} 34. f3 {[%emt 0:02:24]} Kf8 {[%emt 0:03:22]} 35. Kf2 {[%emt 0:01:47]} Ra8 {[%emt 0:02:03]} 36. Rec1 {[%emt 0:01:18]} Ra2+ {[%emt 0:00:26]} 37. R1c2 {[%emt 0:03:27]} Rxc2+ {[%emt 0:01:04]} 38. Rxc2 {[%emt 0:00:03]} Rb4 {[%emt 0:00:52]} 39. Nxc6 {[%emt 0:00:13]} Rxb3 {[%emt 0:00:35]} 40. Nd4 {[%emt 0:02:01]} Rb4 {[%emt 0:00:51]} 41. Ne2 {[%emt 0:01:26]} c6 {[%emt 0:00:16]} 42. g3 {[%emt 0:02:10]} g5 {[%emt 0:01:01]} 43. gxf4 {[%emt 0:00:23]} gxf4 {[%emt 0:00:03]} 44. Nc3 {[%emt 0:00:13]} Rc4 {[%emt 0:06:55]} 45. Ke2 {[%emt 0:00:31]} c5 {[%emt 0:01:33]} 46. Rd2 {[%emt 0:01:02]} Rxc3 {[%emt 0:02:45]} 47. Rxd5 {[%emt 0:00:05]} Ke7 {[%emt 0:00:05]} 48. Kd2 {[%emt 0:01:02]} Rxf3 {[%emt 0:00:35]} 49. Rxc5 {[%emt 0:00:04]} Ke6 {[%emt 0:00:07]} 50. Ke2 {[%emt 0:00:43]} Rg3 {[%emt 0:01:09]} 51. Rc7 {[%emt 0:00:25]} Rh3 {[%emt 0:00:07]} 52. Rc5 {[%emt 0:00:11]} Rg3 {[%emt 0:02:11]} 53. Rc7 {[%emt 0:00:04]} h6 {[%emt 0:01:56]} 54. Rc6+ {[%emt 0:00:09]} Kxe5 {[%emt 0:00:11]} 55. Rxh6 {[%emt 0:00:07]} Rxg4 {[%emt 0:00:53]} 56. Kf3 {[%emt 0:00:09]} Rg3+ {[%emt 0:00:01]} 57. Kf2 {[%emt 0:00:05]} Kf5 {[%emt 0:01:42]} 58. Rh8 {[%emt 0:00:12]} Rg6 {[%emt 0:00:02]} 59. Kf3 {[%emt 0:00:12]} Rg3+ {[%emt 0:00:09]} 60. Kf2 {[%emt 0:00:04]} Rg6 {[%emt 0:00:12]} 1/2-1/2

[Event "EYCC O18-ch 2024"]
[Site "Prague"]
[Date "2024.08.31"]
[Round "9.12"]
[White "Hak, David"]
[Black "Karolczuk, Iwo"]
[Result "0-1"]
[ECO "E10"]
[WhiteElo "2239"]
[BlackElo "2356"]
[Annotator "RC"]
[PlyCount "74"]
[EventDate "2024.08.19"]
[EventType "swiss"]
[EventCountry "CZE"]
[SourceTitle "playchess.com"]
[Source "ChessBase"]
[SourceQuality "1"]
[TimeControl "5400+30"]

1. d4 {[%emt 0:00:01]} Nf6 {[%emt 0:00:23]} 2. c4 {[%emt 0:00:04]} e6 {[%emt 0:00:38]} 3. Nf3 {[%emt 0:00:04]} a6 {[%emt 0:03:18]} 4. Nc3 {[%emt 0:00:40]} Bb4 {[%emt 0:01:26]} 5. Bd2 {[%emt 0:03:39]} O-O {[%emt 0:02:03]} 6. c5 {[%emt 0:05:05]} d6 {[%emt 0:06:49]} 7. cxd6 {[%emt 0:01:17]} cxd6 {[%emt 0:01:41]} 8. a3 {[%emt 0:04:46]} Ba5 {[%emt 0:00:22]} 9. b4 {[%emt 0:00:56]} Bb6 {[%emt 0:03:49]} 10. e4 {[%emt 0:01:41]} Nc6 {[%emt 0:02:41]} 11. Be3 {[%emt 0:07:23]} Ng4 {[%emt 0:05:45]} 12. Bg5 {[%emt 0:02:23]} f6 {[%emt 0:05:27]} 13. Bc1 {[%emt 0:08:37]} f5 {[%emt 0:11:22]} 14. exf5 {[%emt 0:14:10]} Nxd4 {[%emt 0:03:57]} 15. Nxd4 {[%emt 0:03:25]} Nxf2 {[%emt 0:00:38]} 16. Kxf2 {[%emt 0:03:16]} Qh4+ {[%emt 0:03:28]} 17. Ke3 {[%emt 0:00:17]} e5 {[%emt 0:00:56]} 18. Kd2 {[%emt 0:19:48]} Qxd4+ {[%emt 0:12:46]} 19. Bd3 {[%emt 0:03:37]} Bxf5 {[%emt 0:08:01]} 20. Qb3+ {[%emt 0:00:27]} Kh8 {[%emt 0:00:26]} 21. Qd5 {[%emt 0:00:22]} e4 {[%emt 0:01:40]} 22. Qxd4 {[%emt 0:16:43]} Bxd4 {[%emt 0:00:07]} 23. Bb2 {[%emt 0:02:03]} exd3 {[%emt 0:00:09]} 24. Nd1 {[%emt 0:00:49]} Bb6 {[%emt 0:02:00]} 25. Ne3 {[%emt 0:00:27]} Be4 {[%emt 0:05:16]} 26. Rhf1 {[%emt 0:00:19]} d5 {[%emt 0:00:25]} 27. g4 {[%emt 0:00:23]} Rae8 {[%emt 0:00:41]} 28. Rxf8+ {[%emt 0:00:49]} Rxf8 {[%emt 0:00:17]} 29. Nf5 {[%emt 0:00:24]} Rf7 {[%emt 0:06:11]} 30. Rc1 {[%emt 0:00:40]} h5 {[%emt 0:00:25]} 31. Bxg7+ {[%emt 0:00:51]} Rxg7 {[%emt 0:00:35]} 32. Nxg7 {[%emt 0:00:13]} Kxg7 {[%emt 0:00:06]} 33. gxh5 {[%emt 0:00:11]} Bd8 {[%emt 0:00:31]} 34. h4 {[%emt 0:00:50]} Bxh4 {[%emt 0:00:18]} 35. Rc7+ {[%emt 0:00:05]} Kh6 {[%emt 0:00:18]} 36. Kc3 {[%emt 0:01:10]} Bf6+ {[%emt 0:00:11]} 37. Kd2 {[%emt 0:00:30]} Bg5+ {[%emt 0:00:07]} 0-1

[Event "EYCC O18-ch 2024"]
[Site "Prague"]
[Date "2024.08.31"]
[Round "9.13"]
[White "Palczert, Matyas"]
[Black "Valiyev, Shahin"]
[Result "1/2-1/2"]
[ECO "B97"]
[WhiteElo "2341"]
[BlackElo "2245"]
[Annotator "RC"]
[PlyCount "64"]
[EventDate "2024.08.19"]
[EventType "swiss"]
[EventCountry "CZE"]
[SourceTitle "playchess.com"]
[Source "ChessBase"]
[SourceQuality "1"]
[TimeControl "5400+30"]

1. e4 {[%emt 0:00:03]} c5 {[%emt 0:00:07]} 2. Nf3 {[%emt 0:00:05]} d6 {[%emt 0:00:10]} 3. d4 {[%emt 0:00:05]} cxd4 {[%emt 0:00:12]} 4. Nxd4 {[%emt 0:00:08]} Nf6 {[%emt 0:00:09]} 5. Nc3 {[%emt 0:00:07]} a6 {[%emt 0:00:05]} 6. Bg5 {[%emt 0:00:52]} e6 {[%emt 0:01:17]} 7. f4 {[%emt 0:00:30]} Qb6 {[%emt 0:00:13]} 8. Qd2 {[%emt 0:00:33]} Qxb2 {[%emt 0:00:22]} 9. Rb1 {[%emt 0:00:10]} Qa3 {[%emt 0:00:06]} 10. e5 {[%emt 0:00:50]} h6 {[%emt 0:00:22]} 11. Bh4 {[%emt 0:00:10]} dxe5 {[%emt 0:00:13]} 12. fxe5 {[%emt 0:00:07]} Nd5 {[%emt 0:00:41]} 13. Nxd5 {[%emt 0:00:18]} exd5 {[%emt 0:00:07]} 14. e6 {[%emt 0:00:29]} Bxe6 {[%emt 0:00:06]} 15. Nxe6 {[%emt 0:00:07]} fxe6 {[%emt 0:00:04]} 16. Bd3 {[%emt 0:00:11]} Be7 {[%emt 0:00:08]} 17. Bg6+ {[%emt 0:00:26]} Kd8 {[%emt 0:00:05]} 18. Bxe7+ {[%emt 0:00:09]} Qxe7 {[%emt 0:00:05]} 19. O-O {[%emt 0:00:13]} Nd7 {[%emt 0:00:13]} 20. Rf7 {[%emt 0:02:39]} Qc5+ {[%emt 0:01:42]} 21. Kh1 {[%emt 0:00:07]} Rc8 {[%emt 0:00:09]} 22. Qe1 {[%emt 0:02:39]} Rf8 {[%emt 0:00:40]} 23. Qxe6 {[%emt 0:01:39]} Rxf7 {[%emt 0:00:12]} 24. Qxf7 {[%emt 0:00:18]} Qe7 {[%emt 0:17:22]} 25. Qxd5 {[%emt 0:02:24]} Qe5 {[%emt 0:08:17]} 26. Qd3 {[%emt 0:26:06]} Kc7 {[%emt 0:04:19]} 27. Qf3 {[%emt 0:24:38]} Nc5 {[%emt 0:02:10]} 28. Bd3 {[%emt 0:00:41]} Re8 {[%emt 0:06:02]} 29. h3 {[%emt 0:01:48]} Re6 {[%emt 0:06:18]} 30. Qg4 {[%emt 0:04:34]} Kb8 {[%emt 0:04:54]} 31. Rf1 {[%emt 0:03:03]} Rf6 {[%emt 0:07:01]} 32. Rxf6 {[%emt 0:00:23]} Qxf6 {[%emt 0:03:53]} 1/2-1/2

[Event "EYCC O18-ch 2024"]
[Site "Prague"]
[Date "2024.08.31"]
[Round "9.14"]
[White "Baranciuc, Alexandr"]
[Black "Nastore, Pavel-Alexandru"]
[Result "1-0"]
[ECO "E04"]
[WhiteElo "2332"]
[BlackElo "2233"]
[Annotator "RC"]
[PlyCount "67"]
[EventDate "2024.08.19"]
[EventType "swiss"]
[EventCountry "CZE"]
[SourceTitle "playchess.com"]
[Source "ChessBase"]
[SourceQuality "1"]
[TimeControl "5400+30"]

1. d4 {[%emt 0:00:05]} d5 {[%emt 0:00:08]} 2. c4 {[%emt 0:00:09]} e6 {[%emt 0:00:05]} 3. Nf3 {[%emt 0:00:04]} Nf6 {[%emt 0:00:04]} 4. g3 {[%emt 0:00:05]} dxc4 {[%emt 0:00:07]} 5. Bg2 {[%emt 0:00:05]} a6 {[%emt 0:00:02]} 6. Ne5 {[%emt 0:00:07]} Bb4+ {[%emt 0:00:05]} 7. Nc3 {[%emt 0:00:06]} Nd5 {[%emt 0:00:21]} 8. O-O {[%emt 0:00:08]} Nxc3 {[%emt 0:23:27]} 9. bxc3 {[%emt 0:00:05]} Bxc3 {[%emt 0:00:22]} 10. Rb1 {[%emt 0:00:01]} Qxd4 {[%emt 0:05:42]} 11. Qa4+ {[%emt 0:00:05]} b5 {[%emt 0:01:30]} 12. Qa3 {[%emt 0:00:02]} Qxe5 {[%emt 0:01:04]} 13. Bf4 {[%emt 0:00:01]} Qf6 {[%emt 0:01:16]} 14. Bxc7 {[%emt 0:00:01]} Ra7 {[%emt 0:25:38]} 15. Bxb8 {[%emt 0:04:36]} Rd7 {[%emt 0:00:34]} 16. Bc6 {[%emt 0:05:10]} b4 {[%emt 0:00:18]} 17. Bxd7+ {[%emt 0:06:23]} Bxd7 {[%emt 0:00:07]} 18. Qxa6 {[%emt 0:00:05]} O-O {[%emt 0:00:09]} 19. Rbd1 {[%emt 0:02:39]} Bc8 {[%emt 0:05:48]} 20. Qxc4 {[%emt 0:00:28]} e5 {[%emt 0:00:04]} 21. Bd6 {[%emt 0:01:56]} Be6 {[%emt 0:00:28]} 22. Qb5 {[%emt 0:01:18]} Rc8 {[%emt 0:03:10]} 23. Bxb4 {[%emt 0:20:07]} Bd4 {[%emt 0:00:07]} 24. Rc1 {[%emt 0:06:09]} Rd8 {[%emt 0:03:18]} 25. Bc3 {[%emt 0:01:56]} Bxa2 {[%emt 0:05:49]} 26. Bxd4 {[%emt 0:00:06]} exd4 {[%emt 0:00:03]} 27. Rc6 {[%emt 0:02:04]} Be6 {[%emt 0:00:25]} 28. Rd6 {[%emt 0:00:41]} h6 {[%emt 0:01:07]} 29. Rxd8+ {[%emt 0:00:03]} Qxd8 {[%emt 0:00:03]} 30. Rd1 {[%emt 0:01:19]} Qa8 {[%emt 0:00:23]} 31. f3 {[%emt 0:00:21]} Bh3 {[%emt 0:00:24]} 32. Kf2 {[%emt 0:00:29]} Qa3 {[%emt 0:00:35]} 33. Qe8+ {[%emt 0:00:08]} Kh7 {[%emt 0:00:05]} 34. Qe4+ {[%emt 0:00:04]} 1-0

[Event "EYCC O18-ch 2024"]
[Site "Prague"]
[Date "2024.08.31"]
[Round "9.15"]
[White "Bermudez Ureba, Juan Diego"]
[Black "Slagboom, Leandro"]
[Result "0-1"]
[ECO "C78"]
[WhiteElo "2183"]
[BlackElo "2331"]
[Annotator "RC"]
[PlyCount "75"]
[EventDate "2024.08.19"]
[EventType "swiss"]
[EventCountry "CZE"]
[SourceTitle "playchess.com"]
[Source "ChessBase"]
[SourceQuality "1"]
[TimeControl "5400+30"]

1. e4 {[%emt 0:00:02]} e5 {[%emt 0:00:07]} 2. Nf3 {[%emt 0:00:08]} Nc6 {[%emt 0:00:05]} 3. Bb5 {[%emt 0:00:06]} a6 {[%emt 0:00:05]} 4. Ba4 {[%emt 0:00:05]} Nf6 {[%emt 0:00:06]} 5. O-O {[%emt 0:00:08]} Bc5 {[%emt 0:00:14]} 6. Nxe5 {[%emt 0:15:35]} Nxe5 {[%emt 0:00:16]} 7. d4 {[%emt 0:00:04]} b5 {[%emt 0:00:09]} 8. dxe5 {[%emt 0:01:48]} Nxe4 {[%emt 0:00:41]} 9. Bb3 {[%emt 0:09:01]} Bb7 {[%emt 0:00:55]} 10. Bf4 {[%emt 0:14:17]} Qh4 {[%emt 0:05:34]} 11. Be3 {[%emt 0:00:46]} Bxe3 {[%emt 0:10:58]} 12. fxe3 {[%emt 0:00:07]} O-O {[%emt 0:02:15]} 13. Bd5 {[%emt 0:07:45]} Bxd5 {[%emt 0:08:51]} 14. Qxd5 {[%emt 0:00:20]} d6 {[%emt 0:06:53]} 15. exd6 {[%emt 0:08:28]} Rad8 {[%emt 0:05:29]} 16. Nd2 {[%emt 0:09:40]} Nxd2 {[%emt 0:06:26]} 17. Rf4 {[%emt 0:00:25]} Qh6 {[%emt 0:02:31]} 18. Qxd2 {[%emt 0:00:20]} Rxd6 {[%emt 0:00:11]} 19. Qc3 {[%emt 0:03:40]} Qg6 {[%emt 0:11:53]} 20. e4 {[%emt 0:10:18]} Rc6 {[%emt 0:02:15]} 21. Qd3 {[%emt 0:00:38]} Qe6 {[%emt 0:01:05]} 22. c3 {[%emt 0:01:05]} Rd6 {[%emt 0:01:37]} 23. Qf3 {[%emt 0:01:03]} Rd2 {[%emt 0:02:43]} 24. b3 {[%emt 0:01:38]} f6 {[%emt 0:02:46]} 25. Rf5 {[%emt 0:02:20]} Re8 {[%emt 0:06:51]} 26. e5 {[%emt 0:02:59]} fxe5 {[%emt 0:01:35]} 27. Rf1 {[%emt 0:00:12]} h6 {[%emt 0:02:58]} 28. Qg3 {[%emt 0:00:16]} Kh7 {[%emt 0:01:53]} 29. Rf7 {[%emt 0:02:35]} Qb6+ {[%emt 0:00:35]} 30. Kh1 {[%emt 0:00:22]} Qg6 {[%emt 0:00:07]} 31. Rxc7 {[%emt 0:02:10]} Rf8 {[%emt 0:01:04]} 32. Qxg6+ {[%emt 0:03:56]} Kxg6 {[%emt 0:00:04]} 33. Rc6+ {[%emt 0:00:19]} Kh7 {[%emt 0:00:20]} 34. Kg1 {[%emt 0:00:19]} Rxf1+ {[%emt 0:01:23]} 35. Kxf1 {[%emt 0:00:05]} Rxa2 {[%emt 0:00:04]} 36. c4 {[%emt 0:00:13]} b4 {[%emt 0:02:26]} 37. Rb6 {[%emt 0:04:14]} a5 {[%emt 0:00:17]} 38. Rb5 0-1

[Event "EYCC O18-ch 2024"]
[Site "Prague"]
[Date "2024.08.31"]
[Round "9.16"]
[White "Koutlas, Nikolaos"]
[Black "Loftgaard, Mikkel Vinh"]
[Result "1-0"]
[ECO "B30"]
[WhiteElo "2322"]
[BlackElo "2227"]
[Annotator "RC"]
[PlyCount "67"]
[EventDate "2024.08.19"]
[EventType "swiss"]
[EventCountry "CZE"]
[SourceTitle "playchess.com"]
[Source "ChessBase"]
[SourceQuality "1"]
[TimeControl "5400+30"]

1. e4 {[%emt 0:00:03]} c5 {[%emt 0:03:24]} 2. Nf3 {[%emt 0:00:05]} Nc6 {[%emt 0:01:42]} 3. Bc4 {[%emt 0:00:29]} e6 {[%emt 0:00:10]} 4. O-O {[%emt 0:00:08]} d6 {[%emt 0:01:13]} 5. Re1 {[%emt 0:00:27]} Nf6 {[%emt 0:00:08]} 6. d3 {[%emt 0:00:17]} Be7 {[%emt 0:00:56]} 7. c3 {[%emt 0:03:01]} O-O {[%emt 0:01:00]} 8. Bb3 {[%emt 0:00:07]} e5 {[%emt 0:01:35]} 9. h3 {[%emt 0:00:21]} h6 {[%emt 0:01:11]} 10. d4 {[%emt 0:03:37]} cxd4 {[%emt 0:01:56]} 11. cxd4 {[%emt 0:00:05]} exd4 {[%emt 0:00:08]} 12. Nxd4 {[%emt 0:00:03]} Nxd4 {[%emt 0:03:27]} 13. Qxd4 {[%emt 0:00:04]} Nd7 {[%emt 0:00:07]} 14. Nc3 {[%emt 0:06:24]} Nc5 {[%emt 0:03:41]} 15. Bc2 {[%emt 0:00:07]} Bf6 {[%emt 0:01:49]} 16. Qd1 {[%emt 0:00:58]} Be6 {[%emt 0:04:35]} 17. Qh5 {[%emt 0:02:48]} Bxc3 {[%emt 0:03:41]} 18. bxc3 {[%emt 0:00:13]} Qf6 {[%emt 0:04:52]} 19. Re3 {[%emt 0:04:39]} Qe5 {[%emt 0:01:14]} 20. Qe2 {[%emt 0:00:36]} Rfe8 {[%emt 0:04:44]} 21. Rg3 {[%emt 0:01:35]} Kh8 {[%emt 0:04:47]} 22. Be3 {[%emt 0:07:01]} Nxe4 {[%emt 0:07:01]} 23. Bxe4 Qxe4 {[%emt 0:00:10]} 24. Rxg7 {[%emt 0:09:19]} Rg8 {[%emt 0:02:28]} 25. Rxg8+ {[%emt 0:01:37]} Kxg8 {[%emt 0:01:21]} 26. Rd1 {[%emt 0:00:17]} Kh7 {[%emt 0:01:31]} 27. Rd4 {[%emt 0:01:39]} Qb1+ {[%emt 0:00:18]} 28. Kh2 {[%emt 0:00:04]} Rg8 {[%emt 0:00:25]} 29. Qf3 {[%emt 0:00:56]} Rg6 {[%emt 0:02:26]} 30. g4 {[%emt 0:07:56]} Qb5 {[%emt 0:06:05]} 31. Rxd6 {[%emt 0:02:39]} Qe5+ {[%emt 0:10:05]} 32. Bf4 {[%emt 0:00:08]} Qa5 {[%emt 0:01:48]} 33. Qxb7 {[%emt 0:03:37]} Qxc3 {[%emt 0:01:35]} 34. Rxe6 {[%emt 0:00:20]} 1-0

[Event "EYCC O18-ch 2024"]
[Site "Prague"]
[Date "2024.08.31"]
[Round "9.17"]
[White "Backiel, Hubert"]
[Black "Soderstrom, Adrian"]
[Result "1/2-1/2"]
[ECO "C88"]
[WhiteElo "2216"]
[BlackElo "2318"]
[Annotator "RC"]
[PlyCount "41"]
[EventDate "2024.08.19"]
[EventType "swiss"]
[EventCountry "CZE"]
[SourceTitle "playchess.com"]
[Source "ChessBase"]
[SourceQuality "1"]
[TimeControl "5400+30"]

1. e4 {[%emt 0:02:42]} e5 {[%emt 0:00:06]} 2. Nf3 {[%emt 0:00:04]} Nc6 {[%emt 0:00:05]} 3. Bb5 {[%emt 0:00:05]} a6 {[%emt 0:00:05]} 4. Ba4 {[%emt 0:00:03]} Nf6 {[%emt 0:00:06]} 5. O-O {[%emt 0:00:04]} Be7 {[%emt 0:00:04]} 6. Re1 {[%emt 0:00:04]} b5 {[%emt 0:00:05]} 7. Bb3 {[%emt 0:00:03]} O-O {[%emt 0:00:06]} 8. h3 {[%emt 0:00:13]} Bb7 {[%emt 0:00:04]} 9. d3 {[%emt 0:00:10]} d5 {[%emt 0:00:05]} 10. exd5 {[%emt 0:00:04]} Nxd5 {[%emt 0:00:02]} 11. Nxe5 {[%emt 0:00:10]} Nd4 {[%emt 0:00:07]} 12. Nc3 {[%emt 0:00:07]} Nb4 {[%emt 0:02:08]} 13. Ne4 {[%emt 0:00:05]} Nxb3 {[%emt 0:03:09]} 14. axb3 {[%emt 0:00:10]} f6 {[%emt 0:05:26]} 15. Nf3 {[%emt 0:02:24]} f5 {[%emt 0:01:14]} 16. Neg5 {[%emt 0:02:32]} Bxg5 {[%emt 0:05:20]} 17. Nxg5 {[%emt 0:34:33]} Qd5 {[%emt 0:02:24]} 18. Nf3 {[%emt 0:01:06]} Qd7 {[%emt 0:00:43]} 19. Ne5 {[%emt 0:00:56]} Qd5 {[%emt 0:00:05]} 20. Nf3 {[%emt 0:00:05]} Qd7 {[%emt 0:00:06]} 21. Ne5 {[%emt 0:00:03]} 1/2-1/2